[Event "Titled Tuesday Blitz March 28 Early 2023"]
[White "Sousa, Andre Ventura"]
[Black "Zubritskiy, Artyom"]
[WhiteFideId "1917617"]
[BlackFideId "4181247"]
[WhiteElo "2348"]
[BlackElo "2419"]
[Result "0-1"]
[Round "11"]
[TimeControl "180+2"]
[Date "2023.03.28"]
[WhiteClock "0:00:12"]
[BlackClock "0:00:10"]

1. d4 {[%clk 0:03:00]}  Nc6 {[%clk 0:02:59]} 2. Nf3 {[%clk 0:02:56]}  d6 {[%clk 0:02:59]} 3. e4 {[%clk 0:02:56]}  Nf6 {[%clk 0:02:59]} 4. Nc3 {[%clk 0:02:54]}  g6 {[%clk 0:03:00]} 5. h3 {[%clk 0:02:53]}  Bg7 {[%clk 0:03:00]} 6. Be2 {[%clk 0:02:52]}  O-O {[%clk 0:02:59]} 7. O-O {[%clk 0:02:52]}  e5 {[%clk 0:02:57]} 8. dxe5 {[%clk 0:02:52]}  Nxe5 {[%clk 0:02:56]} 9. Be3 {[%clk 0:02:50]}  c6 {[%clk 0:02:52]} 10. Nxe5 {[%clk 0:02:45]}  dxe5 {[%clk 0:02:53]} 11. Qxd8 {[%clk 0:02:45]}  Rxd8 {[%clk 0:02:53]} 12. f3 {[%clk 0:02:34]}  Be6 {[%clk 0:02:51]} 13. Na4 {[%clk 0:02:33]}  b6 {[%clk 0:02:49]} 14. Rfd1 {[%clk 0:02:33]}  Nh5 {[%clk 0:02:45]} 15. Kf2 {[%clk 0:02:28]}  Nf4 {[%clk 0:02:40]} 16. Ba6 {[%clk 0:02:28]}  Rab8 {[%clk 0:02:31]} 17. h4 {[%clk 0:02:14]}  Bf8 {[%clk 0:01:48]} 18. b3 {[%clk 0:01:57]}  Ba3 {[%clk 0:01:26]} 19. Rab1 {[%clk 0:01:40]}  f6 {[%clk 0:01:20]} 20. g3 {[%clk 0:01:25]}  Nh5 {[%clk 0:01:20]} 21. Bc4 {[%clk 0:01:24]}  Bxc4 {[%clk 0:01:08]} 22. bxc4 {[%clk 0:01:25]}  Ng7 {[%clk 0:01:00]} 23. Rd3 {[%clk 0:01:16]}  Be7 {[%clk 0:00:57]} 24. Rbd1 {[%clk 0:01:05]}  Kf7 {[%clk 0:00:56]} 25. Ke2 {[%clk 0:01:03]}  Ke8 {[%clk 0:00:54]} 26. f4 {[%clk 0:00:56]}  exf4 {[%clk 0:00:48]} 27. gxf4 {[%clk 0:00:47]}  f5 {[%clk 0:00:47]} 28. Kf3 {[%clk 0:00:40]}  fxe4+ {[%clk 0:00:44]} 29. Kxe4 {[%clk 0:00:41]}  Nf5 {[%clk 0:00:45]} 30. Bf2 {[%clk 0:00:37]}  h5 {[%clk 0:00:35]} 31. Rg1 {[%clk 0:00:35]}  Kf7 {[%clk 0:00:33]} 32. c5 {[%clk 0:00:28]}  Rxd3 {[%clk 0:00:32]} 33. cxd3 {[%clk 0:00:26]}  b5 {[%clk 0:00:32]} 34. Nc3 {[%clk 0:00:26]}  Re8 {[%clk 0:00:28]} 35. Kf3 {[%clk 0:00:23]}  Bxh4 {[%clk 0:00:27]} 36. Ne4 {[%clk 0:00:22]}  Bxf2 {[%clk 0:00:25]} 37. Kxf2 {[%clk 0:00:23]}  Rd8 {[%clk 0:00:21]} 38. Ke2 {[%clk 0:00:23]}  Rd4 {[%clk 0:00:19]} 39. Kd2 {[%clk 0:00:18]}  Ra4 {[%clk 0:00:17]} 40. Ra1 {[%clk 0:00:18]}  h4 {[%clk 0:00:15]} 41. Ng5+ {[%clk 0:00:17]}  Kg7 {[%clk 0:00:14]} 42. Ne4 {[%clk 0:00:13]}  h3 {[%clk 0:00:13]} 43. Rh1 {[%clk 0:00:11]}  Rxa2+ {[%clk 0:00:12]} 44. Kc3 {[%clk 0:00:12]}  h2 {[%clk 0:00:12]} 45. Ng5 {[%clk 0:00:12]}  Ng3 {[%clk 0:00:10]} 0-1


[Site "https://www.chess.com"]

[Event "Titled Tuesday Blitz March 28 Early 2023"]
[White "Rozman, Levy"]
[Black "Shivakumar, Shawnak"]
[WhiteFideId "2039877"]
[BlackFideId "30940192"]
[WhiteElo "2376"]
[BlackElo "2089"]
[Result "0-1"]
[Round "11"]
[TimeControl "180+2"]
[Date "2023.03.28"]
[WhiteClock "0:00:54"]
[BlackClock "0:02:08"]

1. e4 {[%clk 0:03:00]}  e5 {[%clk 0:02:59]} 2. Nf3 {[%clk 0:03:00]}  Nf6 {[%clk 0:02:59]} 3. Nxe5 {[%clk 0:03:00]}  d6 {[%clk 0:03:00]} 4. Nf3 {[%clk 0:03:00]}  Nxe4 {[%clk 0:02:59]} 5. Nc3 {[%clk 0:03:00]}  Nxc3 {[%clk 0:02:59]} 6. dxc3 {[%clk 0:03:01]}  Be7 {[%clk 0:03:00]} 7. Be3 {[%clk 0:03:01]}  Nd7 {[%clk 0:03:00]} 8. Qd2 {[%clk 0:02:59]}  O-O {[%clk 0:03:00]} 9. O-O-O {[%clk 0:02:54]}  Nf6 {[%clk 0:03:01]} 10. Bd3 {[%clk 0:02:44]}  c5 {[%clk 0:03:01]} 11. Rhe1 {[%clk 0:02:44]}  b5 {[%clk 0:03:00]} 12. Bg5 {[%clk 0:02:13]}  Be6 {[%clk 0:02:56]} 13. Bxf6 {[%clk 0:01:46]}  Bxf6 {[%clk 0:02:52]} 14. Be4 {[%clk 0:01:46]}  Rb8 {[%clk 0:02:51]} 15. Qxd6 {[%clk 0:01:41]}  Qa5 {[%clk 0:02:46]} 16. Bd5 {[%clk 0:01:39]}  Bxd5 {[%clk 0:02:43]} 17. Qxd5 {[%clk 0:01:37]}  b4 {[%clk 0:02:44]} 18. cxb4 {[%clk 0:01:24]}  Qxb4 {[%clk 0:02:41]} 19. Qb3 {[%clk 0:00:58]}  Qf4+ {[%clk 0:02:33]} 20. Qe3 {[%clk 0:00:58]}  Bxb2+ {[%clk 0:02:28]} 21. Kd2 {[%clk 0:00:58]}  Rbd8+ {[%clk 0:02:21]} 22. Ke2 {[%clk 0:00:58]}  Rde8 {[%clk 0:02:21]} 23. Kf1 {[%clk 0:00:55]}  Rxe3 {[%clk 0:02:19]} 24. Rxe3 {[%clk 0:00:56]}  Qc4+ {[%clk 0:02:18]} 25. Re2 {[%clk 0:00:57]}  Re8 {[%clk 0:02:17]} 26. Rd3 {[%clk 0:00:53]}  Rxe2 {[%clk 0:02:12]} 27. Kxe2 {[%clk 0:00:53]}  Qxc2+ {[%clk 0:02:11]} 28. Nd2 {[%clk 0:00:54]}  Bd4 {[%clk 0:02:08]} 0-1


[Site "https://www.chess.com"]

[Event "Titled Tuesday Blitz March 28 Early 2023"]
[White "Bas Mas, Jose Joaquin"]
[Black "Sochacki, Christophe"]
[WhiteFideId "22219064"]
[BlackFideId "662569"]
[WhiteElo "2233"]
[BlackElo "2474"]
[Result "0-1"]
[Round "11"]
[TimeControl "180+2"]
[Date "2023.03.28"]
[WhiteClock "0:00:44"]
[BlackClock "0:00:50"]

1. e4 {[%clk 0:03:00]}  c5 {[%clk 0:02:54]} 2. Nc3 {[%clk 0:03:00]}  e6 {[%clk 0:02:55]} 3. Nge2 {[%clk 0:02:53]}  a6 {[%clk 0:02:54]} 4. g3 {[%clk 0:02:53]}  b5 {[%clk 0:02:50]} 5. d3 {[%clk 0:02:52]}  Bb7 {[%clk 0:02:50]} 6. Bg2 {[%clk 0:02:52]}  d6 {[%clk 0:02:50]} 7. O-O {[%clk 0:02:52]}  Nd7 {[%clk 0:02:50]} 8. d4 {[%clk 0:02:41]}  cxd4 {[%clk 0:02:49]} 9. Qxd4 {[%clk 0:02:41]}  Ngf6 {[%clk 0:02:47]} 10. a4 {[%clk 0:02:34]}  e5 {[%clk 0:02:38]} 11. Qd2 {[%clk 0:02:26]}  b4 {[%clk 0:02:37]} 12. Nd5 {[%clk 0:02:26]}  a5 {[%clk 0:02:27]} 13. c3 {[%clk 0:02:25]}  Nc5 {[%clk 0:02:21]} 14. cxb4 {[%clk 0:02:11]}  Nb3 {[%clk 0:01:50]} 15. Qd3 {[%clk 0:02:10]}  Bxd5 {[%clk 0:01:43]} 16. exd5 {[%clk 0:02:04]}  Nxa1 {[%clk 0:01:42]} 17. b5 {[%clk 0:02:00]}  Qc8 {[%clk 0:01:30]} 18. Bd2 {[%clk 0:01:37]}  Qc2 {[%clk 0:01:20]} 19. Qe3 {[%clk 0:01:26]}  Nb3 {[%clk 0:01:18]} 20. Bc3 {[%clk 0:01:23]}  Be7 {[%clk 0:01:12]} 21. f4 {[%clk 0:01:06]}  O-O {[%clk 0:01:08]} 22. fxe5 {[%clk 0:01:07]}  dxe5 {[%clk 0:01:08]} 23. Qxe5 {[%clk 0:01:07]}  Rfe8 {[%clk 0:01:04]} 24. d6 {[%clk 0:00:58]}  Bd8 {[%clk 0:01:03]} 25. Qxe8+ {[%clk 0:00:48]}  Nxe8 {[%clk 0:01:02]} 26. Bxa8 {[%clk 0:00:49]}  Nxd6 {[%clk 0:00:56]} 27. Bd5 {[%clk 0:00:44]}  Qxe2 {[%clk 0:00:50]} 0-1


[Site "https://www.chess.com"]

[Event "Titled Tuesday Blitz March 28 Early 2023"]
[White "Al-Tarboush, Ward"]
[Black "Thecourseoisildur"]
[WhiteFideId "7601450"]
[WhiteElo "2257"]
[BlackElo "2474"]
[Result "0-1"]
[Round "11"]
[TimeControl "180+2"]
[Date "2023.03.28"]
[WhiteClock "0:01:13"]
[BlackClock "0:00:06"]

1. e4 {[%clk 0:03:00]}  c5 {[%clk 0:02:59]} 2. Nf3 {[%clk 0:03:01]}  e6 {[%clk 0:02:58]} 3. d4 {[%clk 0:03:01]}  cxd4 {[%clk 0:02:59]} 4. Nxd4 {[%clk 0:03:02]}  Nf6 {[%clk 0:02:59]} 5. Nc3 {[%clk 0:03:02]}  Nc6 {[%clk 0:03:00]} 6. Bf4 {[%clk 0:03:02]}  Bb4 {[%clk 0:02:36]} 7. Nb5 {[%clk 0:03:01]}  Nxe4 {[%clk 0:02:34]} 8. Qf3 {[%clk 0:02:56]}  d5 {[%clk 0:02:27]} 9. Nc7+ {[%clk 0:02:54]}  Kf8 {[%clk 0:02:27]} 10. Nxa8 {[%clk 0:02:55]}  e5 {[%clk 0:02:27]} 11. Bd2 {[%clk 0:02:53]}  Nd4 {[%clk 0:02:24]} 12. Qd1 {[%clk 0:02:53]}  Nxd2 {[%clk 0:02:03]} 13. Qxd2 {[%clk 0:02:52]}  Bf5 {[%clk 0:01:58]} 14. Bd3 {[%clk 0:02:43]}  e4 {[%clk 0:01:51]} 15. Bf1 {[%clk 0:02:24]}  Bc5 {[%clk 0:01:45]} 16. b4 {[%clk 0:02:21]}  e3 {[%clk 0:01:38]} 17. fxe3 {[%clk 0:02:22]}  Nxc2+ {[%clk 0:01:38]} 18. Kd1 {[%clk 0:02:18]}  Nxe3+ {[%clk 0:01:06]} 19. Kc1 {[%clk 0:02:17]}  Bxb4 {[%clk 0:01:06]} 20. Qxe3 {[%clk 0:02:12]}  d4 {[%clk 0:01:04]} 21. Qe5 {[%clk 0:02:06]}  dxc3 {[%clk 0:01:01]} 22. Bd3 {[%clk 0:01:28]}  Qxd3 {[%clk 0:00:25]} 23. Qb8+ {[%clk 0:01:25]}  Ke7 {[%clk 0:00:25]} 24. Qxb7+ {[%clk 0:01:24]}  Kf6 {[%clk 0:00:22]} 25. Qc6+ {[%clk 0:01:20]}  Kg5 {[%clk 0:00:17]} 26. h4+ {[%clk 0:01:20]}  Kh5 {[%clk 0:00:17]} 27. Qf3+ {[%clk 0:01:20]}  Qxf3 {[%clk 0:00:17]} 28. gxf3 {[%clk 0:01:21]}  Ba3+ {[%clk 0:00:17]} 29. Kd1 {[%clk 0:01:21]}  Rxa8 {[%clk 0:00:17]} 30. Ke2 {[%clk 0:01:19]}  Re8+ {[%clk 0:00:16]} 31. Kf2 {[%clk 0:01:19]}  c2 {[%clk 0:00:15]} 32. Rhg1 {[%clk 0:01:14]}  Bc5+ {[%clk 0:00:15]} 33. Kg3 {[%clk 0:01:14]}  Bxg1 {[%clk 0:00:15]} 34. Rxg1 {[%clk 0:01:15]}  Rd8 {[%clk 0:00:15]} 35. Kf4 {[%clk 0:01:14]}  h6 {[%clk 0:00:08]} 36. Kxf5 {[%clk 0:01:12]}  Rd1 {[%clk 0:00:07]} 37. Rxg7 {[%clk 0:01:10]}  c1=Q {[%clk 0:00:07]} 38. Rxf7 {[%clk 0:01:10]}  Qc5+ {[%clk 0:00:07]} 39. Kf6 {[%clk 0:01:10]}  Rd6+ {[%clk 0:00:06]} 40. Kg7 {[%clk 0:01:11]}  Qe5+ {[%clk 0:00:06]} 41. Kh7 {[%clk 0:01:12]}  Rf6 {[%clk 0:00:05]} 42. Rg7 {[%clk 0:01:12]}  Qf5+ {[%clk 0:00:05]} 43. Kh8 {[%clk 0:01:12]}  Rf8+ {[%clk 0:00:05]} 44. Rg8 {[%clk 0:01:13]}  Qf6+ {[%clk 0:00:06]} 45. Kh7 {[%clk 0:01:13]}  Rf7+ {[%clk 0:00:06]} 0-1


[Site "https://www.chess.com"]

[Event "Titled Tuesday Blitz March 28 Early 2023"]
[White "Alex_Sahakyan2006"]
[Black "Lorenzo De La Riva, Lazaro"]
[BlackFideId "2268809"]
[WhiteElo "2595"]
[BlackElo "2294"]
[Result "1-0"]
[Round "11"]
[TimeControl "180+2"]
[Date "2023.03.28"]
[WhiteClock "0:00:50"]
[BlackClock "0:00:19"]

1. Nc3 {[%clk 0:02:57]}  c6 {[%clk 0:02:58]} 2. g3 {[%clk 0:02:56]}  d5 {[%clk 0:02:57]} 3. d3 {[%clk 0:02:57]}  e5 {[%clk 0:02:56]} 4. Nf3 {[%clk 0:02:54]}  Bd6 {[%clk 0:02:55]} 5. e4 {[%clk 0:02:47]}  d4 {[%clk 0:02:54]} 6. Nb1 {[%clk 0:02:46]}  c5 {[%clk 0:02:43]} 7. Bg2 {[%clk 0:02:45]}  h6 {[%clk 0:02:39]} 8. Nh4 {[%clk 0:02:39]}  g6 {[%clk 0:02:35]} 9. O-O {[%clk 0:02:36]}  Nc6 {[%clk 0:02:33]} 10. a4 {[%clk 0:02:35]}  Be6 {[%clk 0:02:32]} 11. Na3 {[%clk 0:02:33]}  Bc7 {[%clk 0:02:29]} 12. Nc4 {[%clk 0:02:31]}  Nge7 {[%clk 0:02:24]} 13. Bd2 {[%clk 0:02:28]}  g5 {[%clk 0:02:22]} 14. Nf3 {[%clk 0:02:24]}  Ng6 {[%clk 0:02:20]} 15. h3 {[%clk 0:02:16]}  g4 {[%clk 0:02:11]} 16. hxg4 {[%clk 0:02:14]}  Bxg4 {[%clk 0:02:12]} 17. Qc1 {[%clk 0:02:09]}  h5 {[%clk 0:02:10]} 18. Nh2 {[%clk 0:02:08]}  Qd7 {[%clk 0:02:06]} 19. f4 {[%clk 0:02:03]}  O-O-O {[%clk 0:01:56]} 20. f5 {[%clk 0:01:59]}  Nge7 {[%clk 0:01:53]} 21. Nxg4 {[%clk 0:02:00]}  hxg4 {[%clk 0:01:53]} 22. Bg5 {[%clk 0:01:55]}  Rdg8 {[%clk 0:01:50]} 23. Kf2 {[%clk 0:01:46]}  Rh5 {[%clk 0:01:42]} 24. Bf6 {[%clk 0:01:37]}  Re8 {[%clk 0:01:25]} 25. Rh1 {[%clk 0:01:31]}  Rxh1 {[%clk 0:01:25]} 26. Qxh1 {[%clk 0:01:31]}  Ng8 {[%clk 0:01:25]} 27. Bg5 {[%clk 0:01:29]}  f6 {[%clk 0:01:25]} 28. Bd2 {[%clk 0:01:30]}  Qg7 {[%clk 0:01:23]} 29. Qh5 {[%clk 0:01:28]}  Re7 {[%clk 0:01:17]} 30. Rh1 {[%clk 0:01:26]}  b6 {[%clk 0:01:16]} 31. Rh4 {[%clk 0:01:26]}  Rf7 {[%clk 0:01:07]} 32. Rxg4 {[%clk 0:01:25]}  Qf8 {[%clk 0:01:08]} 33. Qh8 {[%clk 0:01:18]}  Nge7 {[%clk 0:01:08]} 34. Qxf8+ {[%clk 0:01:19]}  Rxf8 {[%clk 0:01:08]} 35. Bh6 {[%clk 0:01:19]}  Rf7 {[%clk 0:01:08]} 36. Rg7 {[%clk 0:01:18]}  Rxg7 {[%clk 0:01:07]} 37. Bxg7 {[%clk 0:01:19]}  Ng8 {[%clk 0:01:07]} 38. Bf3 {[%clk 0:01:16]}  Kd7 {[%clk 0:01:05]} 39. Bh5 {[%clk 0:01:14]}  Ke7 {[%clk 0:01:06]} 40. g4 {[%clk 0:01:14]}  a6 {[%clk 0:01:04]} 41. Ke2 {[%clk 0:01:12]}  b5 {[%clk 0:01:04]} 42. axb5 {[%clk 0:01:12]}  axb5 {[%clk 0:01:05]} 43. Na3 {[%clk 0:01:13]}  Na7 {[%clk 0:01:04]} 44. Kd2 {[%clk 0:01:12]}  Ba5+ {[%clk 0:01:03]} 45. c3 {[%clk 0:01:08]}  b4 {[%clk 0:00:58]} 46. cxb4 {[%clk 0:01:02]}  Bxb4+ {[%clk 0:00:57]} 47. Kc2 {[%clk 0:01:01]}  Nc6 {[%clk 0:00:49]} 48. Nc4 {[%clk 0:00:59]}  Na5 {[%clk 0:00:38]} 49. Nb6 {[%clk 0:00:58]}  Nc6 {[%clk 0:00:26]} 50. Nd5+ {[%clk 0:00:59]}  Kd6 {[%clk 0:00:26]} 51. Bf7 {[%clk 0:00:51]}  Nge7 {[%clk 0:00:24]} 52. Nxf6 {[%clk 0:00:51]}  Be1 {[%clk 0:00:19]} 53. Be6 {[%clk 0:00:50]}  Bh4 {[%clk 0:00:19]} 54. Ne8# {[%clk 0:00:50]} 1-0


[Site "https://www.chess.com"]

[Event "Titled Tuesday Blitz March 28 Early 2023"]
[White "Kubatko, Ivan"]
[Black "Skvortsov, Andrei"]
[WhiteFideId "24111473"]
[BlackFideId "24108600"]
[WhiteElo "2285"]
[BlackElo "2259"]
[Result "0-1"]
[Round "11"]
[TimeControl "180+2"]
[Date "2023.03.28"]
[WhiteClock "0:00:02"]
[BlackClock "0:00:39"]

1. e4 {[%clk 0:03:00]}  e6 {[%clk 0:02:55]} 2. d4 {[%clk 0:03:00]}  d5 {[%clk 0:02:55]} 3. exd5 {[%clk 0:03:01]}  exd5 {[%clk 0:02:55]} 4. Nf3 {[%clk 0:03:02]}  Nc6 {[%clk 0:02:54]} 5. c4 {[%clk 0:03:02]}  Bb4+ {[%clk 0:02:52]} 6. Nc3 {[%clk 0:03:02]}  Nf6 {[%clk 0:02:50]} 7. Bd3 {[%clk 0:03:01]}  Qe7+ {[%clk 0:02:50]} 8. Be3 {[%clk 0:03:01]}  dxc4 {[%clk 0:02:47]} 9. Bxc4 {[%clk 0:03:01]}  Ng4 {[%clk 0:02:47]} 10. O-O {[%clk 0:03:01]}  Nxe3 {[%clk 0:02:47]} 11. fxe3 {[%clk 0:03:01]}  Qxe3+ {[%clk 0:02:47]} 12. Kh1 {[%clk 0:03:01]}  O-O {[%clk 0:02:47]} 13. Nd5 {[%clk 0:02:50]}  Qh6 {[%clk 0:02:44]} 14. Nxb4 {[%clk 0:02:24]}  Nxb4 {[%clk 0:02:43]} 15. Qb3 {[%clk 0:01:56]}  Nc6 {[%clk 0:02:38]} 16. Bxf7+ {[%clk 0:01:47]}  Kh8 {[%clk 0:02:37]} 17. Ne5 {[%clk 0:01:24]}  Nxd4 {[%clk 0:02:22]} 18. Qb4 {[%clk 0:01:15]}  Qd6 {[%clk 0:02:17]} 19. Qxd6 {[%clk 0:01:06]}  cxd6 {[%clk 0:02:18]} 20. Nc4 {[%clk 0:00:52]}  Nf5 {[%clk 0:02:03]} 21. Bd5 {[%clk 0:00:45]}  Bd7 {[%clk 0:02:03]} 22. Bxb7 {[%clk 0:00:43]}  Rab8 {[%clk 0:02:04]} 23. Bd5 {[%clk 0:00:36]}  Bb5 {[%clk 0:01:58]} 24. b3 {[%clk 0:00:31]}  g6 {[%clk 0:01:53]} 25. Rfe1 {[%clk 0:00:26]}  Rbe8 {[%clk 0:01:50]} 26. Kg1 {[%clk 0:00:26]}  Kg7 {[%clk 0:01:12]} 27. h3 {[%clk 0:00:22]}  Bxc4 {[%clk 0:01:11]} 28. Bxc4 {[%clk 0:00:22]}  Re5 {[%clk 0:01:05]} 29. Bd3 {[%clk 0:00:17]}  Rc8 {[%clk 0:00:59]} 30. Bxf5 {[%clk 0:00:16]}  gxf5 {[%clk 0:01:00]} 31. Rac1 {[%clk 0:00:10]}  Rxe1+ {[%clk 0:00:53]} 32. Rxe1 {[%clk 0:00:10]}  Kf6 {[%clk 0:00:53]} 33. Re2 {[%clk 0:00:10]}  Rc3 {[%clk 0:00:51]} 34. Kf2 {[%clk 0:00:10]}  a5 {[%clk 0:00:49]} 35. g3 {[%clk 0:00:09]}  f4 {[%clk 0:00:43]} 36. gxf4 {[%clk 0:00:09]}  Rxh3 {[%clk 0:00:44]} 37. Kg2 {[%clk 0:00:06]}  Rd3 {[%clk 0:00:42]} 38. Kf2 {[%clk 0:00:02]}  h5 {[%clk 0:00:41]} 39. Re8 {[%clk 0:00:02]}  Rc3 {[%clk 0:00:39]} 0-1


[Site "https://www.chess.com"]

[Event "Titled Tuesday Blitz March 28 Early 2023"]
[White "Pein, Jonathan"]
[Black "Rendle, Thomas E"]
[WhiteFideId "417092"]
[BlackFideId "408760"]
[WhiteElo "2151"]
[BlackElo "2428"]
[Result "0-1"]
[Round "11"]
[TimeControl "180+2"]
[Date "2023.03.28"]
[WhiteClock "0:00:05"]
[BlackClock "0:00:13"]

1. Nf3 {[%clk 0:02:59]}  f5 {[%clk 0:02:56]} 2. b3 {[%clk 0:02:58]}  d6 {[%clk 0:02:51]} 3. Bb2 {[%clk 0:02:57]}  e5 {[%clk 0:02:51]} 4. e3 {[%clk 0:02:52]}  Nf6 {[%clk 0:02:49]} 5. c4 {[%clk 0:02:50]}  Be7 {[%clk 0:02:43]} 6. Nc3 {[%clk 0:02:51]}  O-O {[%clk 0:02:43]} 7. d3 {[%clk 0:02:46]}  Nc6 {[%clk 0:02:37]} 8. a3 {[%clk 0:02:45]}  a5 {[%clk 0:02:33]} 9. Qc2 {[%clk 0:02:46]}  Kh8 {[%clk 0:02:28]} 10. h4 {[%clk 0:02:45]}  Be6 {[%clk 0:02:26]} 11. Ng5 {[%clk 0:02:45]}  Bg8 {[%clk 0:02:26]} 12. O-O-O {[%clk 0:02:45]}  d5 {[%clk 0:02:23]} 13. Kb1 {[%clk 0:02:32]}  d4 {[%clk 0:02:18]} 14. Ne2 {[%clk 0:02:28]}  Bc5 {[%clk 0:02:15]} 15. exd4 {[%clk 0:02:20]}  Nxd4 {[%clk 0:02:12]} 16. Nxd4 {[%clk 0:02:21]}  Bxd4 {[%clk 0:02:12]} 17. Nf3 {[%clk 0:02:13]}  Qd6 {[%clk 0:01:32]} 18. Nxd4 {[%clk 0:01:54]}  exd4 {[%clk 0:01:33]} 19. Be2 {[%clk 0:01:53]}  Rab8 {[%clk 0:01:22]} 20. h5 {[%clk 0:01:53]}  h6 {[%clk 0:01:19]} 21. Bf3 {[%clk 0:01:49]}  b5 {[%clk 0:01:12]} 22. c5 {[%clk 0:01:28]}  Qe6 {[%clk 0:01:11]} 23. Bxd4 {[%clk 0:01:22]}  b4 {[%clk 0:01:12]} 24. Rde1 {[%clk 0:00:59]}  Qxb3+ {[%clk 0:00:59]} 25. Qxb3 {[%clk 0:01:00]}  Bxb3 {[%clk 0:01:00]} 26. axb4 {[%clk 0:00:57]}  Rxb4 {[%clk 0:00:54]} 27. Bc3 {[%clk 0:00:56]}  Rb5 {[%clk 0:00:55]} 28. Bb2 {[%clk 0:00:33]}  Bd5 {[%clk 0:00:48]} 29. Ka1 {[%clk 0:00:24]}  Bxf3 {[%clk 0:00:42]} 30. gxf3 {[%clk 0:00:25]}  Rxc5 {[%clk 0:00:42]} 31. Ba3 {[%clk 0:00:17]}  Nd7 {[%clk 0:00:37]} 32. Bxc5 {[%clk 0:00:11]}  Nxc5 {[%clk 0:00:37]} 33. d4 {[%clk 0:00:08]}  Nb3+ {[%clk 0:00:37]} 34. Kb2 {[%clk 0:00:08]}  Nxd4 {[%clk 0:00:38]} 35. Re7 {[%clk 0:00:07]}  Nxf3 {[%clk 0:00:28]} 36. Rc1 {[%clk 0:00:05]}  Rb8+ {[%clk 0:00:20]} 37. Ka3 {[%clk 0:00:05]}  Nd4 {[%clk 0:00:19]} 38. Rc5 {[%clk 0:00:04]}  Ra8 {[%clk 0:00:16]} 39. Rxf5 {[%clk 0:00:03]}  Nxf5 {[%clk 0:00:16]} 40. Rxc7 {[%clk 0:00:04]}  Nd4 {[%clk 0:00:13]} 41. f4 {[%clk 0:00:05]}  Nb5+ {[%clk 0:00:13]} 0-1


[Site "https://www.chess.com"]

[Event "Titled Tuesday Blitz March 28 Early 2023"]
[White "Lenaerts, Lennert"]
[Black "Kukula, Pawel"]
[WhiteFideId "211435"]
[BlackFideId "1115081"]
[WhiteElo "2334"]
[BlackElo "2012"]
[Result "1-0"]
[Round "11"]
[TimeControl "180+2"]
[Date "2023.03.28"]
[WhiteClock "0:01:59"]
[BlackClock "0:00:03"]

1. d4 {[%clk 0:03:00]}  d5 {[%clk 0:02:58]} 2. c4 {[%clk 0:02:59]}  dxc4 {[%clk 0:02:59]} 3. Nf3 {[%clk 0:02:58]}  Nf6 {[%clk 0:02:58]} 4. e3 {[%clk 0:02:59]}  e6 {[%clk 0:02:56]} 5. Bxc4 {[%clk 0:03:00]}  a6 {[%clk 0:02:56]} 6. O-O {[%clk 0:03:00]}  c5 {[%clk 0:02:50]} 7. a3 {[%clk 0:03:00]}  Nc6 {[%clk 0:02:46]} 8. dxc5 {[%clk 0:03:00]}  Qxd1 {[%clk 0:02:40]} 9. Rxd1 {[%clk 0:03:00]}  Bxc5 {[%clk 0:02:40]} 10. b4 {[%clk 0:03:01]}  Be7 {[%clk 0:02:36]} 11. Bb2 {[%clk 0:03:02]}  O-O {[%clk 0:02:35]} 12. Nbd2 {[%clk 0:03:03]}  Rd8 {[%clk 0:02:31]} 13. Nb3 {[%clk 0:03:02]}  Bd7 {[%clk 0:02:29]} 14. Nfd4 {[%clk 0:03:00]}  Nxd4 {[%clk 0:02:23]} 15. Bxd4 {[%clk 0:03:01]}  Bc6 {[%clk 0:02:14]} 16. Na5 {[%clk 0:02:59]}  Rac8 {[%clk 0:02:07]} 17. Rac1 {[%clk 0:02:58]}  Ba4 {[%clk 0:01:52]} 18. Re1 {[%clk 0:02:52]}  Bc6 {[%clk 0:01:36]} 19. Be2 {[%clk 0:02:49]}  Bd5 {[%clk 0:01:33]} 20. Bb6 {[%clk 0:02:47]}  Re8 {[%clk 0:01:32]} 21. f3 {[%clk 0:02:47]}  Nd7 {[%clk 0:01:30]} 22. Bd4 {[%clk 0:02:47]}  f5 {[%clk 0:01:26]} 23. Bd3 {[%clk 0:02:44]}  Nf6 {[%clk 0:01:10]} 24. Rxc8 {[%clk 0:02:41]}  Rxc8 {[%clk 0:01:11]} 25. e4 {[%clk 0:02:42]}  fxe4 {[%clk 0:01:05]} 26. fxe4 {[%clk 0:02:43]}  Bc6 {[%clk 0:01:04]} 27. Rc1 {[%clk 0:02:33]}  Bd7 {[%clk 0:01:00]} 28. Rd1 {[%clk 0:02:29]}  Bc6 {[%clk 0:00:45]} 29. Rc1 {[%clk 0:02:20]}  Bd7 {[%clk 0:00:43]} 30. Rf1 {[%clk 0:02:20]}  Bc6 {[%clk 0:00:38]} 31. Bc4 {[%clk 0:02:20]}  Bd7 {[%clk 0:00:32]} 32. e5 {[%clk 0:02:16]}  Ne8 {[%clk 0:00:17]} 33. Bb3 {[%clk 0:02:15]}  b5 {[%clk 0:00:12]} 34. Nb7 {[%clk 0:02:08]}  g6 {[%clk 0:00:10]} 35. Nc5 {[%clk 0:02:04]}  Bxc5 {[%clk 0:00:08]} 36. Bxc5 {[%clk 0:02:05]}  Nc7 {[%clk 0:00:05]} 37. Rd1 {[%clk 0:02:05]}  Bc6 {[%clk 0:00:04]} 38. Rd6 {[%clk 0:02:03]}  Bd5 {[%clk 0:00:03]} 39. Bxd5 {[%clk 0:02:03]}  Nxd5 {[%clk 0:00:04]} 40. Rxe6 {[%clk 0:02:03]}  Nf4 {[%clk 0:00:02]} 41. Rxa6 {[%clk 0:02:01]}  Nd3 {[%clk 0:00:02]} 42. e6 {[%clk 0:01:57]}  Nxc5 {[%clk 0:00:02]} 43. bxc5 {[%clk 0:01:58]}  Rxc5 {[%clk 0:00:03]} 44. Ra8+ {[%clk 0:01:59]}  Kg7 {[%clk 0:00:03]} 45. e7 {[%clk 0:01:59]}  Re5 {[%clk 0:00:02]} 46. e8=Q {[%clk 0:01:59]}  Rxe8 {[%clk 0:00:03]} 1-0


[Site "https://www.chess.com"]

[Event "Titled Tuesday Blitz March 28 Early 2023"]
[White "Shevtchenko, Olesya"]
[Black "Balague Camps, Marc"]
[WhiteFideId "24131890"]
[BlackFideId "2297914"]
[WhiteElo "2003"]
[BlackElo "2089"]
[Result "1-0"]
[Round "11"]
[TimeControl "180+2"]
[Date "2023.03.28"]
[WhiteClock "0:01:01"]
[BlackClock "0:00:37"]

1. e4 {[%clk 0:03:00]}  c5 {[%clk 0:03:00]} 2. Nc3 {[%clk 0:03:00]}  e6 {[%clk 0:03:00]} 3. Nf3 {[%clk 0:03:00]}  Nc6 {[%clk 0:03:00]} 4. Bb5 {[%clk 0:03:00]}  Nge7 {[%clk 0:02:59]} 5. O-O {[%clk 0:02:59]}  Nd4 {[%clk 0:02:55]} 6. Nxd4 {[%clk 0:02:55]}  cxd4 {[%clk 0:02:56]} 7. Ne2 {[%clk 0:02:55]}  g6 {[%clk 0:02:51]} 8. Nxd4 {[%clk 0:02:52]}  Qb6 {[%clk 0:02:51]} 9. c3 {[%clk 0:02:52]}  e5 {[%clk 0:02:51]} 10. Bc4 {[%clk 0:02:43]}  exd4 {[%clk 0:02:51]} 11. Qf3 {[%clk 0:02:44]}  f6 {[%clk 0:02:45]} 12. d3 {[%clk 0:02:40]}  Bg7 {[%clk 0:02:43]} 13. cxd4 {[%clk 0:02:39]}  Qxd4 {[%clk 0:02:29]} 14. Be3 {[%clk 0:02:39]}  Qxb2 {[%clk 0:02:27]} 15. Rab1 {[%clk 0:02:36]}  Qe5 {[%clk 0:02:27]} 16. Rb5 {[%clk 0:02:33]}  Qc7 {[%clk 0:02:23]} 17. Rc1 {[%clk 0:02:29]}  Qd8 {[%clk 0:02:14]} 18. Bf4 {[%clk 0:02:05]}  d6 {[%clk 0:02:11]} 19. Qg3 {[%clk 0:02:05]}  a6 {[%clk 0:01:55]} 20. Rb2 {[%clk 0:01:47]}  b5 {[%clk 0:01:48]} 21. Bb3 {[%clk 0:01:46]}  f5 {[%clk 0:01:47]} 22. Rbc2 {[%clk 0:01:44]}  fxe4 {[%clk 0:01:35]} 23. dxe4 {[%clk 0:01:42]}  d5 {[%clk 0:01:16]} 24. exd5 {[%clk 0:01:39]}  Nf5 {[%clk 0:01:17]} 25. Re1+ {[%clk 0:01:34]}  Kf8 {[%clk 0:01:08]} 26. Qf3 {[%clk 0:01:31]}  Ra7 {[%clk 0:01:07]} 27. Rce2 {[%clk 0:01:25]}  Rf7 {[%clk 0:00:52]} 28. d6 {[%clk 0:01:16]}  Nd4 {[%clk 0:00:46]} 29. Re8+ {[%clk 0:01:15]}  Qxe8 {[%clk 0:00:46]} 30. Rxe8+ {[%clk 0:01:16]}  Kxe8 {[%clk 0:00:46]} 31. Qe4+ {[%clk 0:01:08]}  Be6 {[%clk 0:00:36]} 32. Bxe6 {[%clk 0:01:02]}  Rxf4 {[%clk 0:00:37]} 33. Qa8# {[%clk 0:01:01]} 1-0


[Site "https://www.chess.com"]